[Event "DVM U10 2024"]
[Site "Duesseldorf"]
[Date "2024.12.27"]
[Round "2"]
[White "Dres, Friedrich"]
[Black "Nune, Likhith Siddharth"]
[Result "1-0"]
[ECO "C50"]
[WhiteElo "1123"]
[BlackElo "1533"]
[Annotator "NA RC"]
[PlyCount "111"]
[EventDate "2024.12.23"]
[EventType "team-tourn"]
[EventRounds "7"]
[EventCountry "GER"]
[SourceTitle "playchess.com"]
[Source "ChessBase"]
[SourceQuality "1"]
[TimeControl "3300+5"]

1. e4 {[%emt 0:00:01]} e5 {[%emt 0:00:04]} 2. Nf3 {[%emt 0:00:22]} Nc6 {[%emt 0:00:09]} 3. Bc4 {[%emt 0:00:06]} f5 {[%emt 0:00:16]} 4. d4 {[%emt 0:01:19]} exd4 {[%emt 0:00:24]} 5. e5 {[%emt 0:00:09]} Bc5 {[%emt 0:00:51]} 6. O-O {[%emt 0:00:18]} Nge7 {[%emt 0:00:37]} 7. Re1 {[%emt 0:00:07]} Ng6 {[%emt 0:02:03]} 8. Ng5 {[%emt 0:00:35]} Rf8 {[%emt 0:02:09]} 9. e6 {[%emt 0:00:11]} d5 {[%emt 0:00:33]} 10. Bb5 {[%emt 0:01:04]} Qd6 {[%emt 0:00:49]} 11. Nf7 {[%emt 0:00:20]} Rxf7 {[%emt 0:01:29]} 12. exf7+ {[%emt 0:01:24]} Kxf7 {[%emt 0:00:10]} 13. Bxc6 {[%emt 0:00:18]} Qxc6 {[%emt 0:00:16]} 14. Qh5 {[%emt 0:01:34]} Kg8 {[%emt 0:01:07]} 15. Nd2 {[%emt 0:01:12]} b6 {[%emt 0:03:31]} 16. Nf3 {[%emt 0:00:39]} f4 {[%emt 0:04:57]} 17. Bxf4 {[%emt 0:00:22]} Ba6 {[%emt 0:01:09]} 18. Ng5 {[%emt 0:01:52]} h6 {[%emt 0:01:17]} 19. Re6 {[%emt 0:00:37]} Qd7 {[%emt 0:03:42]} 20. Qxg6 {[%emt 0:00:26]} hxg5 {[%emt 0:00:10]} 21. Bxg5 {[%emt 0:00:13]} Rf8 {[%emt 0:02:23]} 22. Rae1 {[%emt 0:00:17]} Qb5 {[%emt 0:02:34]} 23. Bh6 {[%emt 0:00:21]} Rf7 {[%emt 0:00:50]} 24. Rf6 {[%emt 0:01:47]} Qd7 {[%emt 0:02:02]} 25. Qxf7+ {[%emt 0:03:27]} Qxf7 {[%emt 0:00:26]} 26. Rxf7 {[%emt 0:00:21]} Kxf7 {[%emt 0:00:05]} 27. Bf4 {[%emt 0:00:09]} Bd6 {[%emt 0:00:47]} 28. Bxd6 {[%emt 0:00:18]} cxd6 {[%emt 0:00:05]} 29. Rd1 {[%emt 0:00:13]} Bc4 {[%emt 0:00:34]} 30. b3 {[%emt 0:00:13]} Be2 {[%emt 0:01:18]} 31. Rxd4 {[%emt 0:00:06]} Ke6 {[%emt 0:00:31]} 32. c4 {[%emt 0:00:13]} Kf6 {[%emt 0:01:20]} 33. Rxd5 {[%emt 0:00:35]} Ke6 {[%emt 0:00:26]} 34. Rd4 {[%emt 0:00:03]} Bh5 {[%emt 0:00:49]} 35. f3 {[%emt 0:00:40]} Bg6 {[%emt 0:00:34]} 36. Rd1 {[%emt 0:00:06]} a5 {[%emt 0:00:23]} 37. g4 {[%emt 0:00:08]} Kd7 {[%emt 0:00:35]} 38. h4 {[%emt 0:00:35]} Bf7 {[%emt 0:02:38]} 39. h5 {[%emt 0:00:20]} Kc6 {[%emt 0:00:34]} 40. Kg2 {[%emt 0:00:09]} b5 {[%emt 0:01:23]} 41. cxb5+ {[%emt 0:00:16]} Kxb5 {[%emt 0:00:26]} 42. Rxd6 {[%emt 0:00:07]} Kc5 {[%emt 0:01:05]} 43. Rd7 {[%emt 0:00:03]} Be6 {[%emt 0:01:32]} 44. Rxg7 {[%emt 0:00:10]} a4 {[%emt 0:01:38]} 45. h6 {[%emt 0:00:20]} Bxb3 {[%emt 0:02:03]} 46. axb3 {[%emt 0:00:14]} axb3 {[%emt 0:00:31]} 47. h7 {[%emt 0:00:03]} b2 {[%emt 0:00:29]} 48. Rb7 {[%emt 0:00:07]} b1=Q {[%emt 0:00:33]} 49. Rxb1 {[%emt 0:00:11]} Kd5 {[%emt 0:00:00]} 50. h8=Q {[%emt 0:00:32]} Kd6 {[%emt 0:00:03]} 51. Qh5 {[%emt 0:00:14]} Ke6 {[%emt 0:00:04]} 52. Rb6+ {[%emt 0:00:09]} Kd7 {[%emt 0:00:08]} 53. Qf7+ {[%emt 0:00:16]} Kc8 {[%emt 0:00:06]} 54. Rc6+ {[%emt 0:00:14]} Kb8 {[%emt 0:00:11]} 55. Qd7 {[%emt 0:00:03]} Ka8 {[%emt 0:00:06]} 56. Rc8# {[%emt 0:00:11]} 1-0

[Event "DVM U10 2024"]
[Site "Duesseldorf"]
[Date "2024.12.27"]
[Round "2"]
[White "Artarov, Rina"]
[Black "Hantke, Florian"]
[Result "1-0"]
[ECO "D37"]
[WhiteElo "1122"]
[BlackElo "1517"]
[Annotator "NA RC"]
[PlyCount "54"]
[EventDate "2024.12.23"]
[EventType "team-tourn"]
[EventRounds "7"]
[EventCountry "GER"]
[SourceTitle "playchess.com"]
[Source "ChessBase"]
[SourceQuality "1"]
[TimeControl "3300+5"]

1. d4 {[%emt 0:00:02]} d5 {[%emt 0:00:07]} 2. c4 {[%emt 0:00:13]} e6 {[%emt 0:00:08]} 3. Nc3 {[%emt 0:00:05]} Nf6 {[%emt 0:00:05]} 4. Bf4 {[%emt 0:00:07]} c6 {[%emt 0:00:08]} 5. Nf3 {[%emt 0:00:09]} Be7 {[%emt 0:00:59]} 6. e3 {[%emt 0:00:54]} O-O {[%emt 0:00:08]} 7. Qc2 {[%emt 0:00:12]} Re8 {[%emt 0:00:26]} 8. Bd3 {[%emt 0:00:06]} Nbd7 {[%emt 0:00:11]} 9. O-O {[%emt 0:00:11]} Nf8 {[%emt 0:00:08]} 10. Ne5 {[%emt 0:00:44]} N8d7 {[%emt 0:01:38]} 11. c5 {[%emt 0:00:22]} b6 {[%emt 0:01:07]} 12. Nxc6 {[%emt 0:00:27]} bxc5 {[%emt 0:00:57]} 13. Nxd8 {[%emt 0:00:08]} Rxd8 {[%emt 0:00:06]} 14. Nb5 {[%emt 0:00:29]} a6 {[%emt 0:01:59]} 15. Nc7 {[%emt 0:00:31]} Ra7 {[%emt 0:00:11]} 16. Rac1 {[%emt 0:00:32]} Nh5 {[%emt 0:01:07]} 17. Bxh7+ {[%emt 0:01:07]} Kf8 {[%emt 0:00:14]} 18. dxc5 {[%emt 0:00:24]} Nxf4 {[%emt 0:00:50]} 19. exf4 {[%emt 0:00:35]} Rxc7 {[%emt 0:00:05]} 20. c6 {[%emt 0:00:45]} Nf6 {[%emt 0:01:29]} 21. Bd3 {[%emt 0:00:27]} Rd6 {[%emt 0:02:06]} 22. Qa4 {[%emt 0:00:15]} d4 {[%emt 0:04:29]} 23. Bxa6 {[%emt 0:01:12]} Bxa6 {[%emt 0:00:07]} 24. Qxa6 {[%emt 0:00:10]} Nd5 {[%emt 0:00:13]} 25. Qa5 {[%emt 0:04:03]} Bd8 {[%emt 0:00:44]} 26. Qc5 {[%emt 0:00:58]} Be7 {[%emt 0:00:38]} 27. Qxd4 {[%emt 0:00:42]} Bf6 {[%emt 0:00:29]} 1-0

[Event "DVM U10 2024"]
[Site "Duesseldorf"]
[Date "2024.12.27"]
[Round "2"]
[White "Goyush, Shams"]
[Black "Pardo Lorz, Noah"]
[Result "1-0"]
[ECO "C50"]
[WhiteElo "1122"]
[BlackElo "1067"]
[Annotator "NA RC"]
[PlyCount "23"]
[EventDate "2024.12.23"]
[EventType "team-tourn"]
[EventRounds "7"]
[EventCountry "GER"]
[SourceTitle "playchess.com"]
[Source "ChessBase"]
[SourceQuality "1"]
[TimeControl "3300+5"]

1. e4 {[%emt 0:00:03]} e5 {[%emt 0:00:03]} 2. Nf3 {[%emt 0:00:06]} Nc6 {[%emt 0:00:08]} 3. Bc4 {[%emt 0:00:08]} Nf6 {[%emt 0:00:09]} 4. d3 {[%emt 0:00:18]} Bc5 {[%emt 0:00:12]} 5. Nc3 {[%emt 0:00:10]} d6 {[%emt 0:00:08]} 6. Bg5 {[%emt 0:00:08]} Bg4 {[%emt 0:00:09]} 7. Nd5 {[%emt 0:00:11]} Bxf3 {[%emt 0:00:28]} 8. Qxf3 {[%emt 0:00:11]} h6 {[%emt 0:00:45]} 9. Nxf6+ {[%emt 0:00:31]} Kf8 {[%emt 0:00:39]} 10. Nh7+ {[%emt 0:00:17]} Rxh7 {[%emt 0:00:12]} 11. Bxd8 {[%emt 0:00:13]} Rxd8 {[%emt 0:00:11]} 12. Qxf7# {[%emt 0:00:10]} 1-0

[Event "DVM U10 2024"]
[Site "Duesseldorf"]
[Date "2024.12.27"]
[Round "2"]
[White "Luible, Sebastian"]
[Black "Estrin, Boris"]
[Result "1-0"]
[ECO "D02"]
[WhiteElo "1104"]
[BlackElo "1338"]
[Annotator "NA RC"]
[PlyCount "77"]
[EventDate "2024.12.23"]
[EventType "team-tourn"]
[EventRounds "7"]
[EventCountry "GER"]
[SourceTitle "playchess.com"]
[Source "ChessBase"]
[SourceQuality "1"]
[TimeControl "3300+5"]

1. d4 {[%emt 0:00:06]} d5 {[%emt 0:00:08]} 2. Nf3 {[%emt 0:00:05]} Bf5 {[%emt 0:00:08]} 3. e3 {[%emt 0:00:08]} Nc6 {[%emt 0:00:11]} 4. Bd3 {[%emt 0:00:55]} Bg6 {[%emt 0:00:12]} 5. c3 {[%emt 0:00:16]} Nf6 {[%emt 0:00:08]} 6. O-O {[%emt 0:00:51]} Qd6 {[%emt 0:00:23]} 7. b3 {[%emt 0:01:18]} O-O-O {[%emt 0:00:31]} 8. Ba3 {[%emt 0:00:41]} Qd7 {[%emt 0:00:14]} 9. Bxg6 {[%emt 0:00:31]} hxg6 {[%emt 0:00:11]} 10. h3 {[%emt 0:00:30]} e6 {[%emt 0:00:12]} 11. b4 {[%emt 0:01:43]} Bd6 {[%emt 0:00:40]} 12. Nbd2 {[%emt 0:01:07]} Rh5 {[%emt 0:00:48]} 13. Bb2 {[%emt 0:01:57]} Rdh8 {[%emt 0:00:33]} 14. Ne5 {[%emt 0:01:56]} Nxe5 {[%emt 0:00:24]} 15. dxe5 {[%emt 0:00:05]} Bxe5 {[%emt 0:00:08]} 16. f4 {[%emt 0:00:22]} Bd6 {[%emt 0:00:14]} 17. a3 {[%emt 0:01:37]} e5 {[%emt 0:02:02]} 18. Qf3 {[%emt 0:01:29]} e4 {[%emt 0:01:18]} 19. Qg3 {[%emt 0:01:06]} g5 {[%emt 0:00:57]} 20. c4 {[%emt 0:00:37]} c6 {[%emt 0:01:31]} 21. c5 {[%emt 0:01:42]} Bc7 {[%emt 0:00:08]} 22. Bxf6 {[%emt 0:00:28]} gxf6 {[%emt 0:00:44]} 23. Rad1 {[%emt 0:02:39]} Qd8 {[%emt 0:01:10]} 24. Nxe4 {[%emt 0:01:39]} gxf4 {[%emt 0:00:29]} 25. exf4 {[%emt 0:02:03]} Rg8 {[%emt 0:00:32]} 26. Qf3 {[%emt 0:02:12]} Rgh8 {[%emt 0:00:31]} 27. Ng3 {[%emt 0:02:33]} R5h7 {[%emt 0:00:36]} 28. b5 {[%emt 0:03:17]} Rg8 {[%emt 0:00:39]} 29. bxc6 {[%emt 0:01:16]} Rhg7 {[%emt 0:00:21]} 30. cxb7+ {[%emt 0:00:36]} Kb8 {[%emt 0:00:23]} 31. Rxd5 {[%emt 0:02:35]} Qe7 {[%emt 0:00:23]} 32. Nf5 {[%emt 0:03:51]} Rxg2+ {[%emt 0:00:16]} 33. Kh1 {[%emt 0:00:46]} Qe6 {[%emt 0:01:08]} 34. Nd4 {[%emt 0:02:47]} Qa6 {[%emt 0:01:24]} 35. Re1 {[%emt 0:05:12]} Qa5 {[%emt 0:01:46]} 36. Nc6+ {[%emt 0:00:33]} Kxb7 {[%emt 0:00:17]} 37. Nxa5+ {[%emt 0:00:13]} Bxa5 {[%emt 0:00:08]} 38. Rd6+ {[%emt 0:00:27]} Kb8 {[%emt 0:00:28]} 39. Rb1+ {[%emt 0:00:21]} 1-0

[Event "DVM U10 2024"]
[Site "Duesseldorf"]
[Date "2024.12.27"]
[Round "2"]
[White "Haberger, Nino"]
[Black "Graf, Tom"]
[Result "0-1"]
[ECO "C50"]
[WhiteElo "1098"]
[BlackElo "1456"]
[Annotator "NA RC"]
[PlyCount "78"]
[EventDate "2024.12.23"]
[EventType "team-tourn"]
[EventRounds "7"]
[EventCountry "GER"]
[SourceTitle "playchess.com"]
[Source "ChessBase"]
[SourceQuality "1"]
[TimeControl "3300+5"]

1. e4 {[%emt 0:00:02]} e5 {[%emt 0:00:07]} 2. Bc4 {[%emt 0:00:08]} Nf6 {[%emt 0:00:18]} 3. d3 {[%emt 0:00:09]} Nc6 {[%emt 0:00:14]} 4. Nf3 {[%emt 0:00:08]} Bc5 {[%emt 0:00:18]} 5. O-O {[%emt 0:00:10]} d6 {[%emt 0:00:24]} 6. Nc3 {[%emt 0:00:13]} Bg4 {[%emt 0:00:33]} 7. Be3 {[%emt 0:00:10]} Bb6 {[%emt 0:00:15]} 8. Re1 {[%emt 0:00:26]} O-O {[%emt 0:00:14]} 9. Qe2 {[%emt 0:00:12]} Qe7 {[%emt 0:02:06]} 10. Rad1 {[%emt 0:00:17]} Rfe8 {[%emt 0:00:17]} 11. h3 {[%emt 0:00:26]} Bh5 {[%emt 0:01:09]} 12. a3 {[%emt 0:00:20]} Rad8 {[%emt 0:01:18]} 13. Nd5 {[%emt 0:00:33]} Nxd5 {[%emt 0:00:23]} 14. Bxd5 {[%emt 0:00:15]} Bxe3 {[%emt 0:02:50]} 15. Bxc6 {[%emt 0:01:23]} bxc6 {[%emt 0:03:45]} 16. Qxe3 {[%emt 0:00:11]} c5 {[%emt 0:00:44]} 17. Rd2 {[%emt 0:00:27]} Qd7 {[%emt 0:00:34]} 18. b3 {[%emt 0:00:29]} Re6 {[%emt 0:00:35]} 19. Nh4 {[%emt 0:01:12]} Rde8 {[%emt 0:02:14]} 20. Qg5 {[%emt 0:00:51]} Bg6 {[%emt 0:00:56]} 21. Kh2 {[%emt 0:00:36]} h6 {[%emt 0:00:44]} 22. Qe3 {[%emt 0:00:17]} Rf6 {[%emt 0:03:02]} 23. a4 {[%emt 0:00:37]} Ree6 {[%emt 0:01:27]} 24. g3 {[%emt 0:01:21]} d5 {[%emt 0:02:14]} 25. Qxc5 {[%emt 0:01:20]} d4 {[%emt 0:03:42]} 26. Qxa7 {[%emt 0:00:29]} Bh7 {[%emt 0:04:45]} 27. Qa8+ {[%emt 0:00:39]} Re8 {[%emt 0:00:37]} 28. Qa5 {[%emt 0:00:29]} g5 {[%emt 0:00:19]} 29. Ng2 {[%emt 0:00:21]} Rg6 {[%emt 0:01:51]} 30. Qb4 {[%emt 0:00:21]} g4 {[%emt 0:00:25]} 31. h4 {[%emt 0:00:06]} f5 {[%emt 0:01:58]} 32. Qc4+ {[%emt 0:00:19]} Kh8 {[%emt 0:00:18]} 33. exf5 {[%emt 0:00:23]} Rf6 {[%emt 0:01:12]} 34. Kg1 {[%emt 0:02:16]} Bg8 {[%emt 0:01:40]} 35. Qb4 {[%emt 0:00:40]} Qxf5 {[%emt 0:00:59]} 36. Qb7 {[%emt 0:00:35]} Ref8 {[%emt 0:03:53]} 37. Rf1 {[%emt 0:00:24]} c6 {[%emt 0:00:21]} 38. a5 {[%emt 0:00:17]} Bd5 {[%emt 0:00:18]} 39. a6 {[%emt 0:00:30]} Qf3 {[%emt 0:00:23]} 0-1

[Event "DVM U10 2024"]
[Site "Duesseldorf"]
[Date "2024.12.27"]
[Round "2"]
[White "Golnik, Rasmus"]
[Black "Kinateder, Vitus"]
[Result "0-1"]
[ECO "C66"]
[WhiteElo "1087"]
[BlackElo "1605"]
[Annotator "NA RC"]
[PlyCount "112"]
[EventDate "2024.12.23"]
[EventType "team-tourn"]
[EventRounds "7"]
[EventCountry "GER"]
[SourceTitle "playchess.com"]
[Source "ChessBase"]
[SourceQuality "1"]
[TimeControl "3300+5"]

1. e4 {[%emt 0:00:02]} e5 {[%emt 0:00:04]} 2. Nf3 {[%emt 0:00:11]} Nc6 {[%emt 0:00:08]} 3. Bb5 {[%emt 0:00:20]} d6 {[%emt 0:00:32]} 4. d4 {[%emt 0:00:21]} Bd7 {[%emt 0:02:40]} 5. Nc3 {[%emt 0:03:50]} Nf6 {[%emt 0:05:03]} 6. O-O {[%emt 0:02:42]} a6 {[%emt 0:00:42]} 7. Bc4 {[%emt 0:02:05]} h6 {[%emt 0:00:28]} 8. h3 {[%emt 0:05:05]} Ne7 {[%emt 0:03:44]} 9. dxe5 {[%emt 0:00:00]} dxe5 {[%emt 0:00:29]} 10. Nxe5 {[%emt 0:00:00]} Be6 {[%emt 0:01:00]} 11. Bxe6 {[%emt 0:00:53]} fxe6 {[%emt 0:00:19]} 12. Bf4 {[%emt 0:01:19]} Qxd1 {[%emt 0:00:48]} 13. Raxd1 {[%emt 0:00:13]} g5 {[%emt 0:00:42]} 14. Be3 {[%emt 0:01:39]} Bg7 {[%emt 0:00:18]} 15. Bc5 {[%emt 0:00:24]} Nxe4 {[%emt 0:00:39]} 16. Bxe7 {[%emt 0:02:06]} Nxc3 {[%emt 0:00:11]} 17. bxc3 {[%emt 0:01:20]} Bxe5 {[%emt 0:00:11]} 18. Rfe1 {[%emt 0:06:09]} Bxc3 {[%emt 0:00:50]} 19. Rxe6 {[%emt 0:00:16]} Kf7 {[%emt 0:00:25]} 20. Re3 {[%emt 0:01:13]} Ba5 {[%emt 0:03:03]} 21. Rd5 {[%emt 0:03:43]} Bb6 {[%emt 0:00:53]} 22. Re2 {[%emt 0:02:00]} Rae8 {[%emt 0:01:40]} 23. Rf5+ {[%emt 0:01:54]} Kg6 {[%emt 0:00:32]} 24. Rf6+ {[%emt 0:05:26]} Kg7 {[%emt 0:01:39]} 25. c3 {[%emt 0:04:59]} Rxe7 {[%emt 0:00:20]} 26. Rxe7+ {[%emt 0:01:28]} Kxf6 {[%emt 0:00:08]} 27. Re2 {[%emt 0:00:46]} Rd8 {[%emt 0:00:32]} 28. a4 {[%emt 0:00:37]} Rd3 {[%emt 0:00:10]} 29. Rc2 {[%emt 0:00:39]} Ba5 {[%emt 0:00:04]} 30. c4 {[%emt 0:00:53]} Rc3 {[%emt 0:00:10]} 31. Rxc3 {[%emt 0:00:32]} Bxc3 {[%emt 0:00:06]} 32. Kf1 {[%emt 0:00:03]} Ke5 {[%emt 0:00:06]} 33. Ke2 {[%emt 0:00:01]} Kd4 {[%emt 0:00:11]} 34. g3 {[%emt 0:00:09]} Kxc4 {[%emt 0:00:08]} 35. f4 {[%emt 0:00:06]} gxf4 {[%emt 0:00:05]} 36. gxf4 {[%emt 0:00:01]} Kd5 {[%emt 0:00:11]} 37. Kd3 {[%emt 0:00:09]} Bf6 {[%emt 0:00:10]} 38. Ke3 {[%emt 0:00:03]} Ke6 {[%emt 0:00:44]} 39. Ke4 {[%emt 0:00:01]} Bc3 {[%emt 0:00:13]} 40. h4 {[%emt 0:00:39]} h5 {[%emt 0:00:05]} 41. f5+ {[%emt 0:00:09]} Kf6 {[%emt 0:00:07]} 42. Kf4 {[%emt 0:00:07]} Be1 {[%emt 0:00:11]} 43. Ke4 {[%emt 0:00:17]} Bxh4 {[%emt 0:00:07]} 44. Kf4 {[%emt 0:00:00]} Be1 {[%emt 0:00:10]} 45. Ke4 {[%emt 0:00:00]} h4 {[%emt 0:00:09]} 46. Kf3 {[%emt 0:00:01]} Kxf5 {[%emt 0:00:06]} 47. Kg2 {[%emt 0:00:05]} b5 {[%emt 0:00:09]} 48. axb5 {[%emt 0:00:12]} axb5 {[%emt 0:00:01]} 49. Kh3 {[%emt 0:00:08]} b4 {[%emt 0:00:04]} 50. Kg2 {[%emt 0:00:08]} b3 {[%emt 0:00:04]} 51. Kh3 {[%emt 0:00:01]} b2 {[%emt 0:00:06]} 52. Kg2 {[%emt 0:00:09]} b1=Q {[%emt 0:00:05]} 53. Kh3 {[%emt 0:00:03]} Qd3+ {[%emt 0:00:17]} 54. Kh2 {[%emt 0:00:29]} Bg3+ {[%emt 0:00:09]} 55. Kg1 {[%emt 0:00:28]} Qe2 {[%emt 0:00:16]} 56. Kh1 {[%emt 0:00:06]} Qh2# {[%emt 0:00:03]} 0-1

[Event "DVM U10 2024"]
[Site "Duesseldorf"]
[Date "2024.12.27"]
[Round "2"]
[White "Städler, Jannis"]
[Black "Satheesh, Yazhini"]
[Result "1-0"]
[ECO "C55"]
[WhiteElo "1082"]
[BlackElo "1023"]
[Annotator "NA"]
[PlyCount "141"]
[EventDate "2024.12.23"]
[EventType "team-tourn"]
[EventRounds "7"]
[EventCountry "GER"]
[SourceTitle "playchess.com"]
[Source "ChessBase"]
[SourceQuality "1"]
[TimeControl "3300+5"]

1. e4 {[%emt 0:00:03]} e5 {[%emt 0:00:07]} 2. Nf3 {[%emt 0:00:04]} Nc6 {[%emt 0:00:06]} 3. Bc4 {[%emt 0:00:10]} Bc5 {[%emt 0:00:28]} 4. d3 {[%emt 0:00:18]} Nf6 {[%emt 0:00:36]} 5. Ng5 {[%emt 0:00:16]} O-O {[%emt 0:00:21]} 6. Nc3 {[%emt 0:00:24]} d6 {[%emt 0:00:35]} 7. Nf3 {[%emt 0:00:15]} h6 {[%emt 0:01:26]} 8. h3 {[%emt 0:00:14]} Bd7 {[%emt 0:01:54]} 9. Qe2 {[%emt 0:00:25]} Qe7 {[%emt 0:01:50]} 10. Be3 {[%emt 0:00:16]} Bb6 {[%emt 0:01:15]} 11. Bxb6 {[%emt 0:00:13]} axb6 {[%emt 0:00:09]} 12. O-O {[%emt 0:00:13]} Be6 {[%emt 0:01:09]} 13. Nd5 {[%emt 0:01:01]} Qd8 {[%emt 0:01:51]} 14. a3 {[%emt 0:01:03]} Bd7 {[%emt 0:01:11]} 15. b4 {[%emt 0:00:27]} Nxd5 {[%emt 0:01:43]} 16. exd5 {[%emt 0:00:14]} Ne7 {[%emt 0:01:11]} 17. Rfe1 {[%emt 0:00:33]} Ng6 {[%emt 0:01:26]} 18. d4 {[%emt 0:00:26]} exd4 {[%emt 0:01:40]} 19. Nxd4 {[%emt 0:00:41]} Qg5 {[%emt 0:01:20]} 20. Nf3 {[%emt 0:00:55]} Qf6 {[%emt 0:00:57]} 21. Qd3 {[%emt 0:01:20]} Nf4 {[%emt 0:02:54]} 22. Qd4 {[%emt 0:00:49]} Qxd4 {[%emt 0:02:23]} 23. Nxd4 {[%emt 0:00:14]} Rfe8 {[%emt 0:00:52]} 24. Ne2 {[%emt 0:01:55]} Nxe2+ {[%emt 0:00:56]} 25. Rxe2 {[%emt 0:00:13]} Rxe2 {[%emt 0:00:42]} 26. Bxe2 {[%emt 0:00:13]} Re8 {[%emt 0:00:30]} 27. Kf1 {[%emt 0:00:34]} Kf8 {[%emt 0:01:28]} 28. c4 {[%emt 0:01:33]} Bf5 {[%emt 0:00:35]} 29. Rc1 {[%emt 0:01:10]} Be4 {[%emt 0:00:45]} 30. f3 {[%emt 0:00:16]} Bg6 {[%emt 0:00:11]} 31. c5 {[%emt 0:00:13]} dxc5 {[%emt 0:00:56]} 32. bxc5 {[%emt 0:00:16]} bxc5 {[%emt 0:00:45]} 33. Rxc5 {[%emt 0:00:07]} Rc8 {[%emt 0:01:09]} 34. d6 {[%emt 0:00:10]} c6 {[%emt 0:01:11]} 35. Rc1 {[%emt 0:00:22]} Rd8 {[%emt 0:00:35]} 36. Rd1 {[%emt 0:00:47]} Ke8 {[%emt 0:00:58]} 37. f4 {[%emt 0:00:51]} Kf8 {[%emt 0:00:23]} 38. h4 {[%emt 0:01:27]} Bf5 {[%emt 0:00:53]} 39. g4 {[%emt 0:01:12]} Bh7 {[%emt 0:00:37]} 40. g5 {[%emt 0:00:22]} hxg5 {[%emt 0:00:24]} 41. fxg5 {[%emt 0:00:32]} Bg8 {[%emt 0:00:56]} 42. h5 {[%emt 0:00:19]} Bh7 {[%emt 0:00:51]} 43. Kf2 {[%emt 0:00:47]} Ke8 {[%emt 0:00:37]} 44. a4 {[%emt 0:01:21]} Bc2 {[%emt 0:00:32]} 45. Rd4 {[%emt 0:00:08]} Bh7 {[%emt 0:00:21]} 46. a5 {[%emt 0:00:29]} Kf8 {[%emt 0:00:44]} 47. Kf3 {[%emt 0:00:26]} Ke8 {[%emt 0:00:30]} 48. Kf4 {[%emt 0:00:12]} Kf8 {[%emt 0:01:24]} 49. a6 {[%emt 0:00:46]} bxa6 {[%emt 0:00:05]} 50. Bxa6 {[%emt 0:00:08]} c5 {[%emt 0:01:00]} 51. Rd5 {[%emt 0:00:21]} c4 {[%emt 0:00:21]} 52. Bxc4 {[%emt 0:00:00]} Ke8 {[%emt 0:01:29]} 53. Bb5+ {[%emt 0:00:12]} Kf8 {[%emt 0:00:14]} 54. Re5 {[%emt 0:00:21]} g6 {[%emt 0:00:53]} 55. d7 {[%emt 0:00:15]} gxh5 {[%emt 0:01:21]} 56. Re8+ {[%emt 0:00:11]} Rxe8 {[%emt 0:00:09]} 57. dxe8=Q+ {[%emt 0:00:16]} Kg7 {[%emt 0:00:16]} 58. Bc4 {[%emt 0:00:38]} Bg6 {[%emt 0:00:19]} 59. Qe5+ {[%emt 0:00:23]} Kf8 {[%emt 0:00:45]} 60. Qd6+ {[%emt 0:00:37]} Kg7 {[%emt 0:00:44]} 61. Bd3 {[%emt 0:00:17]} Bxd3 {[%emt 0:00:40]} 62. Qxd3 {[%emt 0:00:09]} h4 {[%emt 0:00:15]} 63. Qh3 {[%emt 0:00:17]} f6 {[%emt 0:00:32]} 64. Qxh4 {[%emt 0:00:25]} fxg5+ {[%emt 0:00:05]} 65. Qxg5+ {[%emt 0:00:08]} Kf7 {[%emt 0:00:06]} 66. Qh6 {[%emt 0:00:12]} Ke7 {[%emt 0:00:05]} 67. Ke5 {[%emt 0:00:10]} Kd7 {[%emt 0:00:06]} 68. Qd6+ {[%emt 0:00:09]} Ke8 {[%emt 0:00:08]} 69. Qc7 {[%emt 0:00:14]} Kf8 {[%emt 0:00:04]} 70. Kf6 {[%emt 0:00:10]} Kg8 {[%emt 0:00:02]} 71. Qg7# {[%emt 0:00:04]} 1-0

[Event "DVM U10 2024"]
[Site "Duesseldorf"]
[Date "2024.12.27"]
[Round "2"]
[White "Brakhane, Justus"]
[Black "Steffen, Leon"]
[Result "1-0"]
[ECO "C47"]
[WhiteElo "1068"]
[BlackElo "1058"]
[Annotator "NA RC"]
[PlyCount "81"]
[EventDate "2024.12.23"]
[EventType "team-tourn"]
[EventRounds "7"]
[EventCountry "GER"]
[SourceTitle "playchess.com"]
[Source "ChessBase"]
[SourceQuality "1"]
[TimeControl "3300+5"]

1. e4 {[%emt 0:00:02]} e5 {[%emt 0:00:04]} 2. Nf3 {[%emt 0:00:05]} Nc6 {[%emt 0:00:08]} 3. d4 {[%emt 0:00:07]} Nf6 {[%emt 0:00:32]} 4. Nc3 {[%emt 0:01:25]} d6 {[%emt 0:00:31]} 5. dxe5 {[%emt 0:00:07]} dxe5 {[%emt 0:00:17]} 6. Qxd8+ {[%emt 0:00:09]} Nxd8 {[%emt 0:00:12]} 7. Nxe5 {[%emt 0:00:11]} Bb4 {[%emt 0:00:31]} 8. Bd2 {[%emt 0:00:19]} Bxc3 {[%emt 0:00:19]} 9. Bxc3 {[%emt 0:00:12]} Nxe4 {[%emt 0:00:40]} 10. Bb4 {[%emt 0:00:52]} c5 {[%emt 0:00:11]} 11. Ba3 {[%emt 0:00:22]} O-O {[%emt 0:00:33]} 12. f3 {[%emt 0:00:19]} b5 {[%emt 0:01:09]} 13. Bxb5 {[%emt 0:00:24]} Nd6 {[%emt 0:00:34]} 14. Bxc5 {[%emt 0:00:47]} N8b7 {[%emt 0:00:30]} 15. Bxd6 {[%emt 0:00:22]} Nxd6 {[%emt 0:00:16]} 16. Bc6 {[%emt 0:00:09]} Rb8 {[%emt 0:00:29]} 17. O-O-O {[%emt 0:00:09]} Nf5 {[%emt 0:00:52]} 18. Bd7 {[%emt 0:00:30]} Ne3 {[%emt 0:01:08]} 19. Rd2 {[%emt 0:00:44]} Rb6 {[%emt 0:01:25]} 20. Re1 {[%emt 0:00:13]} Ra6 {[%emt 0:01:43]} 21. Rxe3 {[%emt 0:00:24]} Rxa2 {[%emt 0:00:14]} 22. Rdd3 {[%emt 0:00:26]} Ba6 {[%emt 0:01:01]} 23. Ra3 {[%emt 0:00:25]} Rxa3 {[%emt 0:00:14]} 24. Rxa3 {[%emt 0:00:15]} Bc8 {[%emt 0:00:27]} 25. Bxc8 {[%emt 0:00:08]} Rxc8 {[%emt 0:00:08]} 26. Rxa7 {[%emt 0:00:06]} f6 {[%emt 0:00:22]} 27. Nd7 {[%emt 0:00:22]} Re8 {[%emt 0:00:22]} 28. Kd2 {[%emt 0:00:10]} Rd8 {[%emt 0:00:18]} 29. c4 {[%emt 0:00:19]} Kf7 {[%emt 0:00:55]} 30. Kc3 {[%emt 0:00:27]} Ke6 {[%emt 0:00:05]} 31. Nc5+ {[%emt 0:00:17]} Kd6 {[%emt 0:00:12]} 32. Nb7+ {[%emt 0:00:17]} Kc7 {[%emt 0:00:24]} 33. Nxd8+ {[%emt 0:00:22]} Kxd8 {[%emt 0:00:08]} 34. Rxg7 {[%emt 0:00:21]} Ke8 {[%emt 0:00:24]} 35. Rxh7 {[%emt 0:00:20]} Kf8 {[%emt 0:00:15]} 36. c5 {[%emt 0:00:11]} Ke8 {[%emt 0:00:10]} 37. c6 {[%emt 0:00:06]} Kd8 {[%emt 0:00:14]} 38. Kd4 {[%emt 0:00:15]} Kc8 {[%emt 0:00:10]} 39. Kd5 {[%emt 0:00:14]} Kd8 {[%emt 0:00:23]} 40. Kd6 {[%emt 0:00:06]} Kc8 {[%emt 0:00:33]} 41. Rh8# {[%emt 0:00:10]} 1-0